Workbook

Sheet Июнь
P1: Июнь | T1: -2 | X1: Экономия | Y1: Базовая норма расхода на 100 км | Z1: Базовая норма расхода на 1 мото/час
A2: Общество с ограниченной ответственностью "Втормет Царицыно" | R2: 1-я пол. | S2: 2018-06-01 | T2: 2018-06-15 | U2: =ТС!E5 -> 500 | V2: =SUMIFS(Июнь[Выдано топливо, литр],Июнь[Дата],">="&$S$2,Июнь[Дата],"<="&$T$2)+IF(MONTH(T2)<>MONTH(S2),INDIRECT(TEXT(A7-1,"ММММ")&"!F38")-SUM(INDIRECT(TEXT(A7-1,"ММММ")&"!V1:V2")))+SUMIFS($U$7:$U$37,Июнь[Дата],">="&$S$2,Июнь[Дата],"<="&$T$2)+IF(MONTH(T2)<>MONTH(S2),INDIRECT(TEXT(A7-1,"ММММ")&"!F38")-SUM(INDIRECT(TEXT(A7-1,"ММММ")&"!V1:V2"))) -> 920 | W2: =IF(V2=0,0,(SUMIFS(N7:N37,A7:A37,">="&S2,A7:A37,"<="&T2)+SUMIFS(INDIRECT(TEXT(A7-1,"ММММ")&"!N7:N37"),INDIRECT(TEXT(A7-1,"ММММ")&"!A7:A37"),">="&S2))/(V2-U2+IF(MONTH(T2)=MONTH(S2),G7,INDEX(INDIRECT(TEXT(A7-1,"ММММ")&"!G7:G37"),DAY(S2))))) ->  | X2: =SUMIFS(Июнь[Отклонение от нормы (Перерасход(+), экономия(-)), литр],Июнь[Дата],">="&$S$2,Июнь[Дата],"<="&$T$2) -> 71.348 | Y2: =IF(Y4="Зима",VLOOKUP(Z4,Расчет[[Номер гос.регистрации / Заводской номер]:[Итога норма а/м "ЛЕТО"]],8,FALSE),VLOOKUP(Z4,Расчет[[Номер гос.регистрации / Заводской номер]:[Итога норма а/м "ЛЕТО"]],9,FALSE)) -> 46.86 | Z2: =IF(Y4="Зима",VLOOKUP(Z4,Расчет[[Номер гос.регистрации / Заводской номер]:[Итога норма а/м "ЛЕТО"]],13,FALSE),VLOOKUP(Z4,Расчет[[Номер гос.регистрации / Заводской номер]:[Итога норма а/м "ЛЕТО"]],14,FALSE)) -> 5.5
A3: Отчет водителя ломовоза с манипулятором | R3: 2-я пол. | S3: =T2+1 -> 2018-06-16 | T3: =INDEX(Июнь[Дата],COUNT(Июнь[Дата]))-T1 -> 2018-07-02 | U3: =ТС!E6 -> 500 | V3: =SUMIFS(Июнь[Выдано топливо, литр],Июнь[Дата],">="&$S$3,Июнь[Дата],"<="&$T$3)+IF(MONTH(T3)<>MONTH(S3),SUMIFS(INDIRECT(TEXT(T3,"ММММ")&"[Выдано топливо, литр]"),INDIRECT(TEXT(T3,"ММММ")&"[Дата]"),">="&$S$3,INDIRECT(TEXT(T3,"ММММ")&"[Дата]"),"<="&$T$3))+SUMIFS($U$7:$U$37,Июнь[Дата],">="&$S$3,Июнь[Дата],"<="&$T$3)+IF(MONTH(T3)<>MONTH(S3),SUMIFS(INDIRECT(TEXT(T3,"ММММ")&"!$U$7:$U$37"),INDIRECT(TEXT(T3,"ММММ")&"[Дата]"),">="&$S$3,INDIRECT(TEXT(T3,"ММММ")&"[Дата]"),"<="&$T$3)) -> 1110 | W3: =(SUMIFS(Июнь[Расход топлива по норме, литр],Июнь[Дата],">="&$S$3,Июнь[Дата],"<="&$T$3)+IF(MONTH(T3)<>MONTH(S3),SUMIFS(INDIRECT(TEXT(T3,"ММММ")&"[Расход топлива по норме, литр]"),INDIRECT(TEXT(T3,"ММММ")&"[Дата]"),">="&$S$3,INDIRECT(TEXT(T3,"ММММ")&"[Дата]"),"<="&$T$3)))/(V3-U3+IF(MONTH($T$3)=MONTH($S$3),$G$7,INDEX(INDIRECT(TEXT($A$7-1,"ММММ")&"!$G$7:$G$37"),DAY($S$3)))) ->  | X3: =SUMIFS(Июнь[Отклонение от нормы (Перерасход(+), экономия(-)), литр],Июнь[Дата],">="&$S$3,Июнь[Дата],"<="&$T$3) -> -27.519
H4: за | I4: 2018 | O4: т 056 вв 197 | S4: =IF(INDEX(Июнь[Дата],COUNT(Июнь[Дата]))=T3,"",T3+1) -> 2018-07-03 | W4: =IFERROR(IF(S4="","",INDIRECT(TEXT(A7+40,"ММММ")&"!W2")),) -> 1.905765661 | Y4: Лето | Z4: Норма 1
A6: Дата | B6: ФИО водителя | C6: Показание одометра машины на начало дня, км | D6: Показание одометра машины на конец дня, км | E6: Пройдено за день, км | F6: Выдано топливо, литр | G6: Остаток топлива в баке на начало дня, литр | H6: Показание счетчика моточасов спецоборудования на начало дня, м/ч | I6: Показание счетчика моточасов спецоборудования на конец дня, м/ч | J6: Работа спецоборудования за день, м/ч | K6: Количество ходок | L6: Расход топлива на работу спецоборудования, литр | M6: Остаток топлива в баке на конец дня, литр | N6: Расход топлива по норме, литр | O6: Фактический расход топлива, литр | P6: Отклонение от нормы (Перерасход(+), экономия(-)), литр | R6: Дата | S6: Обнуление одометра, км | T6: Пройдено за день, км | U6: Выдано топливо, литр | V6: Обнуление счетчика моточасов спецоборудования, м/ч | W6: Работа спецоборудования за день, м/ч | X6: Расход топлива по норме, литр | Y6: Фактический расход топлива, литр | Z6: Дата
A7: 2018-06-01 | B7: Малышев О.С. | C7: 216988 | D7: 217041 | E7: 53 | F7: 0 | G7: 500 | H7: 848 | I7: 852 | J7: 4 | K7: 3 | L7: 22 | M7: =IFERROR(IF($T$2=[Дата],VLOOKUP([Дата],S$2:U$3,3),IF($T$3=[Дата],VLOOKUP([Дата],S$2:U$3,3),INDIRECT($P$1&"!F"&ROW())+INDIRECT($P$1&"!U"&ROW())+INDIRECT($P$1&"!G"&ROW())-INDIRECT($P$1&"!O"&ROW()))),"") -> 449 | N7: 46.836 | O7: 51 | P7: 4.164 | R7: =Июнь[[#This Row],[Дата]] -> 2018-06-01 | Z7: =Июнь[[#This Row],[Дата]] -> 2018-06-01
A8: 2018-06-02 | C8: 217041 | D8: 217041 | E8: 0 | F8: 0 | G8: =IF(Июнь[[#This Row],[Дата]]="","",M7) -> 449 | H8: 852 | I8: 852 | J8: 0 | L8: 0 | M8: =IFERROR(IF($T$2=[Дата],VLOOKUP([Дата],S$2:U$3,3),IF($T$3=[Дата],VLOOKUP([Дата],S$2:U$3,3),INDIRECT($P$1&"!F"&ROW())+INDIRECT($P$1&"!U"&ROW())+INDIRECT($P$1&"!G"&ROW())-INDIRECT($P$1&"!O"&ROW()))),"") -> 449 | N8: 0 | O8: 0 | P8: 0 | R8: =Июнь[[#This Row],[Дата]] -> 2018-06-02 | Z8: =Июнь[[#This Row],[Дата]] -> 2018-06-02
A9: 2018-06-03 | B9: Малышев О.С. | C9: 217041 | D9: 217085 | E9: 44 | F9: 0 | G9: =IF(Июнь[[#This Row],[Дата]]="","",M8) -> 449 | H9: 852 | I9: 857 | J9: 5 | K9: 3 | L9: 27.5 | M9: =IFERROR(IF($T$2=[Дата],VLOOKUP([Дата],S$2:U$3,3),IF($T$3=[Дата],VLOOKUP([Дата],S$2:U$3,3),INDIRECT($P$1&"!F"&ROW())+INDIRECT($P$1&"!U"&ROW())+INDIRECT($P$1&"!G"&ROW())-INDIRECT($P$1&"!O"&ROW()))),"") -> 397 | N9: 48.118 | O9: 52 | P9: 3.882 | R9: =Июнь[[#This Row],[Дата]] -> 2018-06-03 | Z9: =Июнь[[#This Row],[Дата]] -> 2018-06-03
A10: 2018-06-04 | B10: Малышев О.С. | C10: 217085 | D10: 217137 | E10: 52 | F10: 0 | G10: =IF(Июнь[[#This Row],[Дата]]="","",M9) -> 397 | H10: 857 | I10: 862 | J10: 5 | K10: 3 | L10: 27.5 | M10: =IFERROR(IF($T$2=[Дата],VLOOKUP([Дата],S$2:U$3,3),IF($T$3=[Дата],VLOOKUP([Дата],S$2:U$3,3),INDIRECT($P$1&"!F"&ROW())+INDIRECT($P$1&"!U"&ROW())+INDIRECT($P$1&"!G"&ROW())-INDIRECT($P$1&"!O"&ROW()))),"") -> 341 | N10: 51.867 | O10: 56 | P10: 4.133 | R10: =Июнь[[#This Row],[Дата]] -> 2018-06-04 | Z10: =Июнь[[#This Row],[Дата]] -> 2018-06-04
A11: 2018-06-05 | B11: Малышев О.С. | C11: 217137 | D11: 217217 | E11: 80 | F11: 0 | G11: =IF(Июнь[[#This Row],[Дата]]="","",M10) -> 341 | H11: 862 | I11: 864 | J11: 2 | K11: 1 | L11: 11 | M11: =IFERROR(IF($T$2=[Дата],VLOOKUP([Дата],S$2:U$3,3),IF($T$3=[Дата],VLOOKUP([Дата],S$2:U$3,3),INDIRECT($P$1&"!F"&ROW())+INDIRECT($P$1&"!U"&ROW())+INDIRECT($P$1&"!G"&ROW())-INDIRECT($P$1&"!O"&ROW()))),"") -> 288 | N11: 48.488 | O11: 53 | P11: 4.512 | R11: =Июнь[[#This Row],[Дата]] -> 2018-06-05 | Z11: =Июнь[[#This Row],[Дата]] -> 2018-06-05
A12: 2018-06-06 | B12: Малышев О.С. | C12: 217217 | D12: 217380 | E12: 163 | F12: 200 | G12: =IF(Июнь[[#This Row],[Дата]]="","",M11) -> 288 | H12: 864 | I12: 865 | J12: 1 | K12: 2 | L12: 5.5 | M12: =IFERROR(IF($T$2=[Дата],VLOOKUP([Дата],S$2:U$3,3),IF($T$3=[Дата],VLOOKUP([Дата],S$2:U$3,3),INDIRECT($P$1&"!F"&ROW())+INDIRECT($P$1&"!U"&ROW())+INDIRECT($P$1&"!G"&ROW())-INDIRECT($P$1&"!O"&ROW()))),"") -> 399 | N12: 81.882 | O12: 89 | P12: 7.118 | R12: =Июнь[[#This Row],[Дата]] -> 2018-06-06 | Z12: =Июнь[[#This Row],[Дата]] -> 2018-06-06
A13: 2018-06-07 | B13: Малышев О.С. | C13: 217380 | D13: 217484 | E13: 104 | F13: 0 | G13: =IF(Июнь[[#This Row],[Дата]]="","",M12) -> 399 | H13: 865 | I13: 869 | J13: 4 | K13: 3 | L13: 22 | M13: =IFERROR(IF($T$2=[Дата],VLOOKUP([Дата],S$2:U$3,3),IF($T$3=[Дата],VLOOKUP([Дата],S$2:U$3,3),INDIRECT($P$1&"!F"&ROW())+INDIRECT($P$1&"!U"&ROW())+INDIRECT($P$1&"!G"&ROW())-INDIRECT($P$1&"!O"&ROW()))),"") -> 322 | N13: 70.734 | O13: 77 | P13: 6.266 | R13: =Июнь[[#This Row],[Дата]] -> 2018-06-07 | Z13: =Июнь[[#This Row],[Дата]] -> 2018-06-07
A14: 2018-06-08 | B14: Малышев О.С. | C14: 217484 | D14: 217590 | E14: 106 | F14: 250 | G14: =IF(Июнь[[#This Row],[Дата]]="","",M13) -> 322 | H14: 869 | I14: 873 | J14: 4 | K14: 2 | L14: 22 | M14: =IFERROR(IF($T$2=[Дата],VLOOKUP([Дата],S$2:U$3,3),IF($T$3=[Дата],VLOOKUP([Дата],S$2:U$3,3),INDIRECT($P$1&"!F"&ROW())+INDIRECT($P$1&"!U"&ROW())+INDIRECT($P$1&"!G"&ROW())-INDIRECT($P$1&"!O"&ROW()))),"") -> 494 | N14: 71.672 | O14: 78 | P14: 6.328 | R14: =Июнь[[#This Row],[Дата]] -> 2018-06-08 | Z14: =Июнь[[#This Row],[Дата]] -> 2018-06-08
A15: 2018-06-09 | B15: Малышев О.С. | C15: 217590 | D15: 217770 | E15: 180 | F15: 0 | G15: =IF(Июнь[[#This Row],[Дата]]="","",M14) -> 494 | H15: 873 | I15: 875 | J15: 2 | K15: 2 | L15: 11 | M15: =IFERROR(IF($T$2=[Дата],VLOOKUP([Дата],S$2:U$3,3),IF($T$3=[Дата],VLOOKUP([Дата],S$2:U$3,3),INDIRECT($P$1&"!F"&ROW())+INDIRECT($P$1&"!U"&ROW())+INDIRECT($P$1&"!G"&ROW())-INDIRECT($P$1&"!O"&ROW()))),"") -> 391 | N15: 95.348 | O15: 103 | P15: 7.652 | R15: =Июнь[[#This Row],[Дата]] -> 2018-06-09 | Z15: =Июнь[[#This Row],[Дата]] -> 2018-06-09
A16: 2018-06-10 | B16: Малышев О.С. | C16: 217770 | D16: 217843 | E16: 73 | F16: 0 | G16: =IF(Июнь[[#This Row],[Дата]]="","",M15) -> 391 | H16: 875 | I16: 879 | J16: 4 | K16: 3 | L16: 22 | M16: =IFERROR(IF($T$2=[Дата],VLOOKUP([Дата],S$2:U$3,3),IF($T$3=[Дата],VLOOKUP([Дата],S$2:U$3,3),INDIRECT($P$1&"!F"&ROW())+INDIRECT($P$1&"!U"&ROW())+INDIRECT($P$1&"!G"&ROW())-INDIRECT($P$1&"!O"&ROW()))),"") -> 330 | N16: 56.208 | O16: 61 | P16: 4.792 | R16: =Июнь[[#This Row],[Дата]] -> 2018-06-10 | Z16: =Июнь[[#This Row],[Дата]] -> 2018-06-10
A17: 2018-06-11 | B17: Малышев О.С. | C17: 217843 | D17: 217960 | E17: 117 | F17: 0 | G17: =IF(Июнь[[#This Row],[Дата]]="","",M16) -> 330 | H17: 879 | I17: 884 | J17: 5 | K17: 4 | L17: 27.5 | M17: =IFERROR(IF($T$2=[Дата],VLOOKUP([Дата],S$2:U$3,3),IF($T$3=[Дата],VLOOKUP([Дата],S$2:U$3,3),INDIRECT($P$1&"!F"&ROW())+INDIRECT($P$1&"!U"&ROW())+INDIRECT($P$1&"!G"&ROW())-INDIRECT($P$1&"!O"&ROW()))),"") -> 241 | N17: 82.326 | O17: 89 | P17: 6.674 | R17: =Июнь[[#This Row],[Дата]] -> 2018-06-11 | Z17: =Июнь[[#This Row],[Дата]] -> 2018-06-11
A18: 2018-06-12 | B18: Малышев О.С. | C18: 217960 | D18: 218091 | E18: 131 | F18: 300 | G18: =IF(Июнь[[#This Row],[Дата]]="","",M17) -> 241 | H18: 884 | I18: 887 | J18: 3 | K18: 3 | L18: 16.5 | M18: =IFERROR(IF($T$2=[Дата],VLOOKUP([Дата],S$2:U$3,3),IF($T$3=[Дата],VLOOKUP([Дата],S$2:U$3,3),INDIRECT($P$1&"!F"&ROW())+INDIRECT($P$1&"!U"&ROW())+INDIRECT($P$1&"!G"&ROW())-INDIRECT($P$1&"!O"&ROW()))),"") -> 457 | N18: 77.887 | O18: 84 | P18: 6.113 | R18: =Июнь[[#This Row],[Дата]] -> 2018-06-12 | Z18: =Июнь[[#This Row],[Дата]] -> 2018-06-12
A19: 2018-06-13 | B19: Малышев О.С. | C19: 218091 | D19: 218157 | E19: 66 | F19: 0 | G19: =IF(Июнь[[#This Row],[Дата]]="","",M18) -> 457 | H19: 887 | I19: 890 | J19: 3 | K19: 3 | L19: 16.5 | M19: =IFERROR(IF($T$2=[Дата],VLOOKUP([Дата],S$2:U$3,3),IF($T$3=[Дата],VLOOKUP([Дата],S$2:U$3,3),INDIRECT($P$1&"!F"&ROW())+INDIRECT($P$1&"!U"&ROW())+INDIRECT($P$1&"!G"&ROW())-INDIRECT($P$1&"!O"&ROW()))),"") -> 406 | N19: 47.428 | O19: 51 | P19: 3.572 | R19: =Июнь[[#This Row],[Дата]] -> 2018-06-13 | Z19: =Июнь[[#This Row],[Дата]] -> 2018-06-13
A20: 2018-06-14 | C20: 218157 | D20: 218157 | E20: 0 | F20: 0 | G20: =IF(Июнь[[#This Row],[Дата]]="","",M19) -> 406 | H20: 890 | I20: 890 | J20: 0 | L20: 0 | M20: =IFERROR(IF($T$2=[Дата],VLOOKUP([Дата],S$2:U$3,3),IF($T$3=[Дата],VLOOKUP([Дата],S$2:U$3,3),INDIRECT($P$1&"!F"&ROW())+INDIRECT($P$1&"!U"&ROW())+INDIRECT($P$1&"!G"&ROW())-INDIRECT($P$1&"!O"&ROW()))),"") -> 406 | N20: 0 | O20: 0 | P20: 0 | R20: =Июнь[[#This Row],[Дата]] -> 2018-06-14 | Z20: =Июнь[[#This Row],[Дата]] -> 2018-06-14
A21: 2018-06-15 | B21: Малышев О.С. | C21: 218157 | D21: 218273 | E21: 116 | F21: 170 | G21: =IF(Июнь[[#This Row],[Дата]]="","",M20) -> 406 | H21: 890 | I21: 893 | J21: 3 | K21: 2 | L21: 16.5 | M21: =IFERROR(IF($T$2=[Дата],VLOOKUP([Дата],S$2:U$3,3),IF($T$3=[Дата],VLOOKUP([Дата],S$2:U$3,3),INDIRECT($P$1&"!F"&ROW())+INDIRECT($P$1&"!U"&ROW())+INDIRECT($P$1&"!G"&ROW())-INDIRECT($P$1&"!O"&ROW()))),"") -> 500 | N21: 70.858 | O21: 77 | P21: 6.142 | R21: =Июнь[[#This Row],[Дата]] -> 2018-06-15 | Z21: =Июнь[[#This Row],[Дата]] -> 2018-06-15
A22: 2018-06-16 | B22: Кобалян М.В. | C22: 218273 | D22: 218364 | E22: 91 | F22: 0 | G22: =IF(Июнь[[#This Row],[Дата]]="","",M21) -> 500 | H22: 893 | I22: 896 | J22: 3 | K22: 3 | L22: 16.5 | M22: =IFERROR(IF($T$2=[Дата],VLOOKUP([Дата],S$2:U$3,3),IF($T$3=[Дата],VLOOKUP([Дата],S$2:U$3,3),INDIRECT($P$1&"!F"&ROW())+INDIRECT($P$1&"!U"&ROW())+INDIRECT($P$1&"!G"&ROW())-INDIRECT($P$1&"!O"&ROW()))),"") -> 442 | N22: 59.143 | O22: 58 | P22: -1.143 | R22: =Июнь[[#This Row],[Дата]] -> 2018-06-16 | Z22: =Июнь[[#This Row],[Дата]] -> 2018-06-16
A23: 2018-06-17 | B23: Кобалян М.В. | C23: 218364 | D23: 218539 | E23: 175 | F23: 0 | G23: =IF(Июнь[[#This Row],[Дата]]="","",M22) -> 442 | H23: 896 | I23: 901 | J23: 5 | K23: 3 | L23: 27.5 | M23: =IFERROR(IF($T$2=[Дата],VLOOKUP([Дата],S$2:U$3,3),IF($T$3=[Дата],VLOOKUP([Дата],S$2:U$3,3),INDIRECT($P$1&"!F"&ROW())+INDIRECT($P$1&"!U"&ROW())+INDIRECT($P$1&"!G"&ROW())-INDIRECT($P$1&"!O"&ROW()))),"") -> 335 | N23: 109.505 | O23: 107 | P23: -2.505 | R23: =Июнь[[#This Row],[Дата]] -> 2018-06-17 | Z23: =Июнь[[#This Row],[Дата]] -> 2018-06-17
A24: 2018-06-18 | B24: Кобалян М.В. | C24: 218539 | D24: 218634 | E24: 95 | F24: 0 | G24: =IF(Июнь[[#This Row],[Дата]]="","",M23) -> 335 | H24: 901 | I24: 905 | J24: 4 | K24: 4 | L24: 22 | M24: =IFERROR(IF($T$2=[Дата],VLOOKUP([Дата],S$2:U$3,3),IF($T$3=[Дата],VLOOKUP([Дата],S$2:U$3,3),INDIRECT($P$1&"!F"&ROW())+INDIRECT($P$1&"!U"&ROW())+INDIRECT($P$1&"!G"&ROW())-INDIRECT($P$1&"!O"&ROW()))),"") -> 270 | N24: 66.517 | O24: 65 | P24: -1.517 | R24: =Июнь[[#This Row],[Дата]] -> 2018-06-18 | Z24: =Июнь[[#This Row],[Дата]] -> 2018-06-18
A25: 2018-06-19 | B25: Кобалян М.В. | C25: 218634 | D25: 218755 | E25: 121 | F25: 0 | G25: =IF(Июнь[[#This Row],[Дата]]="","",M24) -> 270 | H25: 905 | I25: 909 | J25: 4 | K25: 3 | L25: 22 | M25: =IFERROR(IF($T$2=[Дата],VLOOKUP([Дата],S$2:U$3,3),IF($T$3=[Дата],VLOOKUP([Дата],S$2:U$3,3),INDIRECT($P$1&"!F"&ROW())+INDIRECT($P$1&"!U"&ROW())+INDIRECT($P$1&"!G"&ROW())-INDIRECT($P$1&"!O"&ROW()))),"") -> 193 | N25: 78.701 | O25: 77 | P25: -1.701 | R25: =Июнь[[#This Row],[Дата]] -> 2018-06-19 | Z25: =Июнь[[#This Row],[Дата]] -> 2018-06-19
A26: 2018-06-20 | B26: Кобалян М.В. | C26: 218755 | D26: 218930 | E26: 175 | F26: 300 | G26: =IF(Июнь[[#This Row],[Дата]]="","",M25) -> 193 | H26: 909 | I26: 913 | J26: 4 | K26: 3 | L26: 22 | M26: =IFERROR(IF($T$2=[Дата],VLOOKUP([Дата],S$2:U$3,3),IF($T$3=[Дата],VLOOKUP([Дата],S$2:U$3,3),INDIRECT($P$1&"!F"&ROW())+INDIRECT($P$1&"!U"&ROW())+INDIRECT($P$1&"!G"&ROW())-INDIRECT($P$1&"!O"&ROW()))),"") -> 392 | N26: 104.005 | O26: 101 | P26: -3.005 | R26: =Июнь[[#This Row],[Дата]] -> 2018-06-20 | Z26: =Июнь[[#This Row],[Дата]] -> 2018-06-20
A27: 2018-06-21 | B27: Кобалян М.В. | C27: 218930 | D27: 219101 | E27: 171 | F27: 0 | G27: =IF(Июнь[[#This Row],[Дата]]="","",M26) -> 392 | H27: 913 | I27: 917 | J27: 4 | K27: 4 | L27: 22 | M27: =IFERROR(IF($T$2=[Дата],VLOOKUP([Дата],S$2:U$3,3),IF($T$3=[Дата],VLOOKUP([Дата],S$2:U$3,3),INDIRECT($P$1&"!F"&ROW())+INDIRECT($P$1&"!U"&ROW())+INDIRECT($P$1&"!G"&ROW())-INDIRECT($P$1&"!O"&ROW()))),"") -> 293 | N27: 102.131 | O27: 99 | P27: -3.131 | R27: =Июнь[[#This Row],[Дата]] -> 2018-06-21 | Z27: =Июнь[[#This Row],[Дата]] -> 2018-06-21
A28: 2018-06-22 | B28: Кобалян М.В. | C28: 219101 | D28: 219280 | E28: 179 | F28: 0 | G28: =IF(Июнь[[#This Row],[Дата]]="","",M27) -> 293 | H28: 917 | I28: 920 | J28: 3 | K28: 4 | L28: 16.5 | M28: =IFERROR(IF($T$2=[Дата],VLOOKUP([Дата],S$2:U$3,3),IF($T$3=[Дата],VLOOKUP([Дата],S$2:U$3,3),INDIRECT($P$1&"!F"&ROW())+INDIRECT($P$1&"!U"&ROW())+INDIRECT($P$1&"!G"&ROW())-INDIRECT($P$1&"!O"&ROW()))),"") -> 195 | N28: 100.379 | O28: 98 | P28: -2.379 | R28: =Июнь[[#This Row],[Дата]] -> 2018-06-22 | Z28: =Июнь[[#This Row],[Дата]] -> 2018-06-22
A29: 2018-06-23 | B29: Кобалян М.В. | C29: 219280 | D29: 219393 | E29: 113 | F29: 270 | G29: =IF(Июнь[[#This Row],[Дата]]="","",M28) -> 195 | H29: 920 | I29: 924 | J29: 4 | K29: 4 | L29: 22 | M29: =IFERROR(IF($T$2=[Дата],VLOOKUP([Дата],S$2:U$3,3),IF($T$3=[Дата],VLOOKUP([Дата],S$2:U$3,3),INDIRECT($P$1&"!F"&ROW())+INDIRECT($P$1&"!U"&ROW())+INDIRECT($P$1&"!G"&ROW())-INDIRECT($P$1&"!O"&ROW()))),"") -> 392 | N29: 74.952 | O29: 73 | P29: -1.952 | R29: =Июнь[[#This Row],[Дата]] -> 2018-06-23 | Z29: =Июнь[[#This Row],[Дата]] -> 2018-06-23
A30: 2018-06-24 | B30: Кобалян М.В. | C30: 219393 | D30: 219472 | E30: 79 | F30: 0 | G30: =IF(Июнь[[#This Row],[Дата]]="","",M29) -> 392 | H30: 924 | I30: 927 | J30: 3 | K30: 3 | L30: 16.5 | M30: =IFERROR(IF($T$2=[Дата],VLOOKUP([Дата],S$2:U$3,3),IF($T$3=[Дата],VLOOKUP([Дата],S$2:U$3,3),INDIRECT($P$1&"!F"&ROW())+INDIRECT($P$1&"!U"&ROW())+INDIRECT($P$1&"!G"&ROW())-INDIRECT($P$1&"!O"&ROW()))),"") -> 340 | N30: 53.519 | O30: 52 | P30: -1.519 | R30: =Июнь[[#This Row],[Дата]] -> 2018-06-24 | Z30: =Июнь[[#This Row],[Дата]] -> 2018-06-24
A31: 2018-06-25 | B31: Кобалян М.В. | C31: 219472 | D31: 219537 | E31: 65 | F31: 0 | G31: =IF(Июнь[[#This Row],[Дата]]="","",M30) -> 340 | H31: 927 | I31: 930 | J31: 3 | K31: 2 | L31: 16.5 | M31: =IFERROR(IF($T$2=[Дата],VLOOKUP([Дата],S$2:U$3,3),IF($T$3=[Дата],VLOOKUP([Дата],S$2:U$3,3),INDIRECT($P$1&"!F"&ROW())+INDIRECT($P$1&"!U"&ROW())+INDIRECT($P$1&"!G"&ROW())-INDIRECT($P$1&"!O"&ROW()))),"") -> 294 | N31: 46.959 | O31: 46 | P31: -0.959 | R31: =Июнь[[#This Row],[Дата]] -> 2018-06-25 | Z31: =Июнь[[#This Row],[Дата]] -> 2018-06-25
A32: 2018-06-26 | B32: Кобалян М.В. | C32: 219537 | D32: 219638 | E32: 101 | F32: 0 | G32: =IF(Июнь[[#This Row],[Дата]]="","",M31) -> 294 | H32: 930 | I32: 934 | J32: 4 | K32: 3 | L32: 22 | M32: =IFERROR(IF($T$2=[Дата],VLOOKUP([Дата],S$2:U$3,3),IF($T$3=[Дата],VLOOKUP([Дата],S$2:U$3,3),INDIRECT($P$1&"!F"&ROW())+INDIRECT($P$1&"!U"&ROW())+INDIRECT($P$1&"!G"&ROW())-INDIRECT($P$1&"!O"&ROW()))),"") -> 226 | N32: 69.329 | O32: 68 | P32: -1.329 | R32: =Июнь[[#This Row],[Дата]] -> 2018-06-26 | Z32: =Июнь[[#This Row],[Дата]] -> 2018-06-26
A33: 2018-06-27 | B33: Кобалян М.В. | C33: 219638 | D33: 219718 | E33: 80 | F33: 260 | G33: =IF(Июнь[[#This Row],[Дата]]="","",M32) -> 226 | H33: 934 | I33: 939 | J33: 5 | K33: 2 | L33: 27.5 | M33: =IFERROR(IF($T$2=[Дата],VLOOKUP([Дата],S$2:U$3,3),IF($T$3=[Дата],VLOOKUP([Дата],S$2:U$3,3),INDIRECT($P$1&"!F"&ROW())+INDIRECT($P$1&"!U"&ROW())+INDIRECT($P$1&"!G"&ROW())-INDIRECT($P$1&"!O"&ROW()))),"") -> 423 | N33: 64.988 | O33: 63 | P33: -1.988 | R33: =Июнь[[#This Row],[Дата]] -> 2018-06-27 | Z33: =Июнь[[#This Row],[Дата]] -> 2018-06-27
A34: 2018-06-28 | B34: Кобалян М.В. | C34: 219718 | D34: 219840 | E34: 122 | F34: 0 | G34: =IF(Июнь[[#This Row],[Дата]]="","",M33) -> 423 | H34: 939 | I34: 941 | J34: 2 | K34: 2 | L34: 11 | M34: =IFERROR(IF($T$2=[Дата],VLOOKUP([Дата],S$2:U$3,3),IF($T$3=[Дата],VLOOKUP([Дата],S$2:U$3,3),INDIRECT($P$1&"!F"&ROW())+INDIRECT($P$1&"!U"&ROW())+INDIRECT($P$1&"!G"&ROW())-INDIRECT($P$1&"!O"&ROW()))),"") -> 357 | N34: 68.169 | O34: 66 | P34: -2.169 | R34: =Июнь[[#This Row],[Дата]] -> 2018-06-28 | Z34: =Июнь[[#This Row],[Дата]] -> 2018-06-28
A35: 2018-06-29 | B35: Кобалян М.В. | C35: 219840 | D35: 219920 | E35: 80 | F35: 0 | G35: =IF(Июнь[[#This Row],[Дата]]="","",M34) -> 357 | H35: 941 | I35: 944 | J35: 3 | K35: 2 | L35: 16.5 | M35: =IFERROR(IF($T$2=[Дата],VLOOKUP([Дата],S$2:U$3,3),IF($T$3=[Дата],VLOOKUP([Дата],S$2:U$3,3),INDIRECT($P$1&"!F"&ROW())+INDIRECT($P$1&"!U"&ROW())+INDIRECT($P$1&"!G"&ROW())-INDIRECT($P$1&"!O"&ROW()))),"") -> 304 | N35: 53.988 | O35: 53 | P35: -0.988 | R35: =Июнь[[#This Row],[Дата]] -> 2018-06-29 | Z35: =Июнь[[#This Row],[Дата]] -> 2018-06-29
A36: 2018-06-30 | B36: Кобалян М.В. | C36: 219920 | D36: 220024 | E36: 104 | F36: 0 | G36: =IF(Июнь[[#This Row],[Дата]]="","",M35) -> 304 | H36: 944 | I36: 945 | J36: 1 | K36: 1 | L36: 5.5 | M36: =IFERROR(IF($T$2=[Дата],VLOOKUP([Дата],S$2:U$3,3),IF($T$3=[Дата],VLOOKUP([Дата],S$2:U$3,3),INDIRECT($P$1&"!F"&ROW())+INDIRECT($P$1&"!U"&ROW())+INDIRECT($P$1&"!G"&ROW())-INDIRECT($P$1&"!O"&ROW()))),"") -> 251 | N36: 54.234 | O36: 53 | P36: -1.234 | R36: =Июнь[[#This Row],[Дата]] -> 2018-06-30 | Z36: =Июнь[[#This Row],[Дата]] -> 2018-06-30
G37: =IF(Июнь[[#This Row],[Дата]]="","",M36) ->  | M37: =IFERROR(IF($T$2=[Дата],VLOOKUP([Дата],S$2:U$3,3),IF($T$3=[Дата],VLOOKUP([Дата],S$2:U$3,3),INDIRECT($P$1&"!F"&ROW())+INDIRECT($P$1&"!U"&ROW())+INDIRECT($P$1&"!G"&ROW())-INDIRECT($P$1&"!O"&ROW()))),"") ->  | R37: =Июнь[[#This Row],[Дата]] ->  | Z37: =Июнь[[#This Row],[Дата]] -> 
A38: Итог | E38: =SUBTOTAL(109,[Пройдено за день, км]) -> 3036 | F38: =SUBTOTAL(109,[Выдано топливо, литр]) -> 1750 | J38: =SUBTOTAL(109,[Работа спецоборудования за день, м/ч]) -> 97 | K38: =SUBTOTAL(109,[Количество ходок]) -> 77 | L38: =SUBTOTAL(109,[Расход топлива на работу спецоборудования, литр]) -> 533.5 | N38: =SUBTOTAL(109,[Расход топлива по норме, литр]) -> 1956.171 | O38: =SUBTOTAL(109,[Фактический расход топлива, литр]) -> 2000 | P38: =SUBTOTAL(109,[Отклонение от нормы (Перерасход(+), экономия(-)), литр]) -> 43.829 | R38: 1-я пол. | S38: =SUMIFS(S$7:S$37,INDIRECT("Июнь[Дата]"),">="&$S$2,INDIRECT("Июнь[Дата]"),"<="&$T$2)+IF(MONTH($T$2)<>MONTH($S$2),INDIRECT(TEXT($A$7-1,"ММММ")&"!F38")-SUM(INDIRECT(TEXT($A$7-1,"ММММ")&"!V1:V2"))) -> 0 | T38: =SUMIFS(T$7:T$37,INDIRECT("Июнь[Дата]"),">="&$S$2,INDIRECT("Июнь[Дата]"),"<="&$T$2)+IF(MONTH($T$2)<>MONTH($S$2),INDIRECT(TEXT($A$7-1,"ММММ")&"!F38")-SUM(INDIRECT(TEXT($A$7-1,"ММММ")&"!V1:V2"))) -> 0 | U38: 0 | V38: 0 | W38: 0 | X38: 0 | Y38: 0 | Z38: 1-я пол.
K39: =SUMIFS(K7:K37,A7:A37,">="&$S$2,A7:A37,"<="&$T$2) -> 34 | R39: 2-я пол. | S39: =SUMIFS(S$7:S$37,INDIRECT("Июнь[Дата]"),">="&$S$3,INDIRECT("Июнь[Дата]"),"<="&$T$3)+IF(MONTH($T$3)<>MONTH($S$3),INDIRECT(TEXT($A$7-1,"ММММ")&"!F38")-SUM(INDIRECT(TEXT($A$7-1,"ММММ")&"!V1:V2"))) ->  | T39: =SUMIFS(T$7:T$37,INDIRECT("Июнь[Дата]"),">="&$S$3,INDIRECT("Июнь[Дата]"),"<="&$T$3)+IF(MONTH($T$3)<>MONTH($S$3),INDIRECT(TEXT($A$7-1,"ММММ")&"!F38")-SUM(INDIRECT(TEXT($A$7-1,"ММММ")&"!V1:V2"))) ->  | Z39: 2-я пол.
K40: =SUMIFS(K7:K37,A7:A37,">="&$S$3,A7:A37,"<="&$T$3) -> 43

Sheet Июль
P1: Июль | X1: Экономия | Y1: Базовая норма расхода на 100 км | Z1: Базовая норма расхода на 1 мото/час
A2: Общество с ограниченной ответственностью "Втормет Царицыно" | R2: 1-я пол. | S2: =INDIRECT(TEXT(A7-1,"ММММ")&"!T3")+1 -> 2018-07-03 | T2: 2018-07-16 | U2: =ТС!E5 -> 500 | V2: =SUMIFS(Июль[Выдано топливо, литр],Июль[Дата],">="&$S$2,Июль[Дата],"<="&$T$2)+IF(MONTH(T2)<>MONTH(S2),INDIRECT(TEXT(A7-1,"ММММ")&"!F38")-SUM(INDIRECT(TEXT(A7-1,"ММММ")&"!V3:V2")))+SUMIFS($U$7:$U$37,Июль[Дата],">="&$S$2,Июль[Дата],"<="&$T$2)+IF(MONTH(T2)<>MONTH(S2),INDIRECT(TEXT(A7-1,"ММММ")&"!F38")-SUM(INDIRECT(TEXT(A7-1,"ММММ")&"!V3:V2"))) -> 680 | W2: =IF(V2=0,0,(SUMIFS(N7:N37,A7:A37,">="&S2,A7:A37,"<="&T2)+SUMIFS(INDIRECT(TEXT(A7-1,"ММММ")&"!N7:N37"),INDIRECT(TEXT(A7-1,"ММММ")&"!A7:A37"),">="&S2))/(V2-U2+IF(MONTH(T2)=MONTH(S2),G7,INDEX(INDIRECT(TEXT(A7-1,"ММММ")&"!G7:G37"),DAY(S2))))) -> 1.905765661 | X2: =SUMIFS(Июль[Отклонение от нормы (Перерасход(+), экономия(-)), литр],Июль[Дата],">="&$S$2,Июль[Дата],"<="&$T$2) -> -391.385 | Y2: =IF(Y4="Зима",VLOOKUP(Z4,Расчет[[Номер гос.регистрации / Заводской номер]:[Итога норма а/м "ЛЕТО"]],8,FALSE),VLOOKUP(Z4,Расчет[[Номер гос.регистрации / Заводской номер]:[Итога норма а/м "ЛЕТО"]],9,FALSE)) -> 46.86 | Z2: =IF(Y4="Зима",VLOOKUP(Z4,Расчет[[Номер гос.регистрации / Заводской номер]:[Итога норма а/м "ЛЕТО"]],13,FALSE),VLOOKUP(Z4,Расчет[[Номер гос.регистрации / Заводской номер]:[Итога норма а/м "ЛЕТО"]],14,FALSE)) -> 5.5
A3: Отчет водителя ломовоза с манипулятором | R3: 2-я пол. | S3: =T2+1 -> 2018-07-17 | T3: =INDEX(Июль[Дата],COUNT(Июль[Дата]))-T1 -> 2018-07-31 | U3: =ТС!E6 -> 500 | V3: =SUMIFS(Июль[Выдано топливо, литр],Июль[Дата],">="&$S$3,Июнь[Дата],"<="&$T$3)+IF(MONTH(T3)<>MONTH(S3),SUMIFS(INDIRECT(TEXT(T3,"ММММ")&"[Выдано топливо, литр]"),INDIRECT(TEXT(T3,"ММММ")&"[Дата]"),">="&$S$3,INDIRECT(TEXT(T3,"ММММ")&"[Дата]"),"<="&$T$3))+SUMIFS($U$7:$U$37,Июль[Дата],">="&$S$3,Июнь[Дата],"<="&$T$3)+IF(MONTH(T3)<>MONTH(S3),SUMIFS(INDIRECT(TEXT(T3,"ММММ")&"!$U$7:$U$37"),INDIRECT(TEXT(T3,"ММММ")&"[Дата]"),">="&$S$3,INDIRECT(TEXT(T3,"ММММ")&"[Дата]"),"<="&$T$3)) -> 0 | W3: =IF(V3=0,0,(SUMIFS(N7:N37,A7:A37,">="&S3,A7:A37,"<="&T3)+SUMIFS(INDIRECT(TEXT(A7-1,"ММММ")&"!N7:N37"),INDIRECT(TEXT(A7-1,"ММММ")&"!A7:A37"),">="&S3))/(V3-U3+IF(MONTH(T3)=MONTH(S3),G7,INDEX(INDIRECT(TEXT(A7-1,"ММММ")&"!G7:G37"),DAY(S3))))) -> 0 | X3: =SUMIFS(Июль[Отклонение от нормы (Перерасход(+), экономия(-)), литр],Июль[Дата],">="&$S$3,Июль[Дата],"<="&$T$3) -> 0
H4: за | I4: 2018 | O4: т 056 вв 197 | S4: =IF(INDEX(Июль[Дата],COUNT(Июль[Дата]))=T3,"",T3+1) ->  | W4: =IFERROR(IF(S4="","",INDIRECT(TEXT(A7+40,"ММММ")&"!W2")),) ->  | Y4: Лето | Z4: Норма 1
A6: Дата | B6: ФИО водителя | C6: Показание одометра машины на начало дня, км | D6: Показание одометра машины на конец дня, км | E6: Пройдено за день, км | F6: Выдано топливо, литр | G6: Остаток топлива в баке на начало дня, литр | H6: Показание счетчика моточасов спецоборудования на начало дня, м/ч | I6: Показание счетчика моточасов спецоборудования на конец дня, м/ч | J6: Работа спецоборудования за день, м/ч | K6: Количество ходок | L6: Расход топлива на работу спецоборудования, литр | M6: Остаток топлива в баке на конец дня, литр | N6: Расход топлива по норме, литр | O6: Фактический расход топлива, литр | P6: Отклонение от нормы (Перерасход(+), экономия(-)), литр | R6: Дата | S6: Обнуление одометра, км | T6: Пройдено за день, км | U6: Выдано топливо, литр | V6: Обнуление счетчика моточасов спецоборудования, м/ч | W6: Работа спецоборудования за день, м/ч | X6: Расход топлива по норме, литр | Y6: Фактический расход топлива, литр | Z6: Дата
A7: 2018-07-01 | B7: Кобалян М.В. | C7: 220024 | D7: 220036 | E7: 12 | F7: 0 | G7: 251 | H7: 945 | I7: 946 | J7: 1 | K7: 1 | L7: 5.5 | M7: =IF($T$2=[Дата],VLOOKUP([Дата],S$2:U$3,3),IF($T$3=[Дата],VLOOKUP([Дата],S$2:U$3,3),IF($S$2=[Дата],VLOOKUP([Дата],S$2:U$3,3),INDIRECT($P$1&"!F"&ROW())+INDIRECT($P$1&"!U"&ROW())+INDIRECT($P$1&"!G"&ROW())-INDIRECT($P$1&"!O"&ROW())))) -> 251 | N7: 11.123 | O7: 0 | P7: -11.123 | R7: =Июль[[#This Row],[Дата]] -> 2018-07-01 | Z7: =Июль[[#This Row],[Дата]] -> 2018-07-01
A8: 2018-07-02 | B8: Кобалян М.В. | C8: 220036 | D8: 220071 | E8: 35 | F8: 280 | G8: =IF(Июль[[#This Row],[Дата]]="","",M7) -> 251 | H8: 946 | I8: 947 | J8: 1 | K8: 1 | L8: 5.5 | M8: =IF($T$2=[Дата],VLOOKUP([Дата],S$2:U$3,3),IF($T$3=[Дата],VLOOKUP([Дата],S$2:U$3,3),IF($S$2=[Дата],VLOOKUP([Дата],S$2:U$3,3),INDIRECT($P$1&"!F"&ROW())+INDIRECT($P$1&"!U"&ROW())+INDIRECT($P$1&"!G"&ROW())-INDIRECT($P$1&"!O"&ROW())))) -> 531 | N8: 21.901 | O8: 0 | P8: -21.901 | R8: =Июль[[#This Row],[Дата]] -> 2018-07-02 | Z8: =Июль[[#This Row],[Дата]] -> 2018-07-02
A9: 2018-07-03 | B9: Малышев О.С. | C9: 220071 | D9: 220293 | E9: 222 | F9: 0 | G9: =IF(Июль[[#This Row],[Дата]]="","",M8) -> 531 | H9: 947 | I9: 950 | J9: 3 | K9: 2 | L9: 16.5 | M9: =IF($T$2=[Дата],VLOOKUP([Дата],S$2:U$3,3),IF($T$3=[Дата],VLOOKUP([Дата],S$2:U$3,3),IF($S$2=[Дата],VLOOKUP([Дата],S$2:U$3,3),INDIRECT($P$1&"!F"&ROW())+INDIRECT($P$1&"!U"&ROW())+INDIRECT($P$1&"!G"&ROW())-INDIRECT($P$1&"!O"&ROW())))) -> 500 | N9: 120.529 | O9: 63 | P9: -57.529 | R9: =Июль[[#This Row],[Дата]] -> 2018-07-03 | Z9: =Июль[[#This Row],[Дата]] -> 2018-07-03
A10: 2018-07-04 | B10: Малышев О.С. | C10: 220293 | D10: 220423 | E10: 130 | F10: 0 | G10: =IF(Июль[[#This Row],[Дата]]="","",M9) -> 500 | H10: 950 | I10: 953 | J10: 3 | K10: 3 | L10: 16.5 | M10: =IF($T$2=[Дата],VLOOKUP([Дата],S$2:U$3,3),IF($T$3=[Дата],VLOOKUP([Дата],S$2:U$3,3),IF($S$2=[Дата],VLOOKUP([Дата],S$2:U$3,3),INDIRECT($P$1&"!F"&ROW())+INDIRECT($P$1&"!U"&ROW())+INDIRECT($P$1&"!G"&ROW())-INDIRECT($P$1&"!O"&ROW())))) -> 459 | N10: 77.418 | O10: 41 | P10: -36.418 | R10: =Июль[[#This Row],[Дата]] -> 2018-07-04 | Z10: =Июль[[#This Row],[Дата]] -> 2018-07-04
A11: 2018-07-05 | B11: Малышев О.С. | C11: 220423 | D11: 220525 | E11: 102 | F11: 0 | G11: =IF(Июль[[#This Row],[Дата]]="","",M10) -> 459 | H11: 953 | I11: 957 | J11: 4 | K11: 3 | L11: 22 | M11: =IF($T$2=[Дата],VLOOKUP([Дата],S$2:U$3,3),IF($T$3=[Дата],VLOOKUP([Дата],S$2:U$3,3),IF($S$2=[Дата],VLOOKUP([Дата],S$2:U$3,3),INDIRECT($P$1&"!F"&ROW())+INDIRECT($P$1&"!U"&ROW())+INDIRECT($P$1&"!G"&ROW())-INDIRECT($P$1&"!O"&ROW())))) -> 422 | N11: 69.797 | O11: 37 | P11: -32.797 | R11: =Июль[[#This Row],[Дата]] -> 2018-07-05 | Z11: =Июль[[#This Row],[Дата]] -> 2018-07-05
A12: 2018-07-06 | B12: Малышев О.С. | C12: 220525 | D12: 220646 | E12: 121 | F12: 0 | G12: =IF(Июль[[#This Row],[Дата]]="","",M11) -> 422 | H12: 957 | I12: 960 | J12: 3 | K12: 2 | L12: 16.5 | M12: =IF($T$2=[Дата],VLOOKUP([Дата],S$2:U$3,3),IF($T$3=[Дата],VLOOKUP([Дата],S$2:U$3,3),IF($S$2=[Дата],VLOOKUP([Дата],S$2:U$3,3),INDIRECT($P$1&"!F"&ROW())+INDIRECT($P$1&"!U"&ROW())+INDIRECT($P$1&"!G"&ROW())-INDIRECT($P$1&"!O"&ROW())))) -> 384 | N12: 73.201 | O12: 38 | P12: -35.201 | R12: =Июль[[#This Row],[Дата]] -> 2018-07-06 | Z12: =Июль[[#This Row],[Дата]] -> 2018-07-06
A13: 2018-07-07 | B13: Малышев О.С. | C13: 220646 | D13: 220730 | E13: 84 | F13: 300 | G13: =IF(Июль[[#This Row],[Дата]]="","",M12) -> 384 | H13: 960 | I13: 963 | J13: 3 | K13: 2 | L13: 16.5 | M13: =IF($T$2=[Дата],VLOOKUP([Дата],S$2:U$3,3),IF($T$3=[Дата],VLOOKUP([Дата],S$2:U$3,3),IF($S$2=[Дата],VLOOKUP([Дата],S$2:U$3,3),INDIRECT($P$1&"!F"&ROW())+INDIRECT($P$1&"!U"&ROW())+INDIRECT($P$1&"!G"&ROW())-INDIRECT($P$1&"!O"&ROW())))) -> 655 | N13: 55.862 | O13: 29 | P13: -26.862 | R13: =Июль[[#This Row],[Дата]] -> 2018-07-07 | Z13: =Июль[[#This Row],[Дата]] -> 2018-07-07
A14: 2018-07-08 | B14: Малышев О.С. | C14: 220730 | D14: 220879 | E14: 149 | F14: 0 | G14: =IF(Июль[[#This Row],[Дата]]="","",M13) -> 655 | H14: 963 | I14: 965 | J14: 2 | K14: 1 | L14: 11 | M14: =IF($T$2=[Дата],VLOOKUP([Дата],S$2:U$3,3),IF($T$3=[Дата],VLOOKUP([Дата],S$2:U$3,3),IF($S$2=[Дата],VLOOKUP([Дата],S$2:U$3,3),INDIRECT($P$1&"!F"&ROW())+INDIRECT($P$1&"!U"&ROW())+INDIRECT($P$1&"!G"&ROW())-INDIRECT($P$1&"!O"&ROW())))) -> 613 | N14: 80.821 | O14: 42 | P14: -38.821 | R14: =Июль[[#This Row],[Дата]] -> 2018-07-08 | Z14: =Июль[[#This Row],[Дата]] -> 2018-07-08
A15: 2018-07-09 | B15: Малышев О.С. | C15: 220879 | D15: 221022 | E15: 143 | F15: 0 | G15: =IF(Июль[[#This Row],[Дата]]="","",M14) -> 613 | H15: 965 | I15: 970 | J15: 5 | K15: 3 | L15: 27.5 | M15: =IF($T$2=[Дата],VLOOKUP([Дата],S$2:U$3,3),IF($T$3=[Дата],VLOOKUP([Дата],S$2:U$3,3),IF($S$2=[Дата],VLOOKUP([Дата],S$2:U$3,3),INDIRECT($P$1&"!F"&ROW())+INDIRECT($P$1&"!U"&ROW())+INDIRECT($P$1&"!G"&ROW())-INDIRECT($P$1&"!O"&ROW())))) -> 563 | N15: 94.51 | O15: 50 | P15: -44.51 | R15: =Июль[[#This Row],[Дата]] -> 2018-07-09 | Z15: =Июль[[#This Row],[Дата]] -> 2018-07-09
A16: 2018-07-10 | B16: Малышев О.С. | C16: 221022 | D16: 221195 | E16: 173 | F16: 0 | G16: =IF(Июль[[#This Row],[Дата]]="","",M15) -> 563 | H16: 970 | I16: 972 | J16: 2 | K16: 3 | L16: 11 | M16: =IF($T$2=[Дата],VLOOKUP([Дата],S$2:U$3,3),IF($T$3=[Дата],VLOOKUP([Дата],S$2:U$3,3),IF($S$2=[Дата],VLOOKUP([Дата],S$2:U$3,3),INDIRECT($P$1&"!F"&ROW())+INDIRECT($P$1&"!U"&ROW())+INDIRECT($P$1&"!G"&ROW())-INDIRECT($P$1&"!O"&ROW())))) -> 515 | N16: 92.068 | O16: 48 | P16: -44.068 | R16: =Июль[[#This Row],[Дата]] -> 2018-07-10 | Z16: =Июль[[#This Row],[Дата]] -> 2018-07-10
A17: 2018-07-11 | B17: Малышев О.С. | C17: 221195 | D17: 221339 | E17: 144 | F17: 380 | G17: =IF(Июль[[#This Row],[Дата]]="","",M16) -> 515 | H17: 972 | I17: 975 | J17: 3 | K17: 4 | L17: 16.5 | M17: =IF($T$2=[Дата],VLOOKUP([Дата],S$2:U$3,3),IF($T$3=[Дата],VLOOKUP([Дата],S$2:U$3,3),IF($S$2=[Дата],VLOOKUP([Дата],S$2:U$3,3),INDIRECT($P$1&"!F"&ROW())+INDIRECT($P$1&"!U"&ROW())+INDIRECT($P$1&"!G"&ROW())-INDIRECT($P$1&"!O"&ROW())))) -> 851 | N17: 83.978 | O17: 44 | P17: -39.978 | R17: =Июль[[#This Row],[Дата]] -> 2018-07-11 | Z17: =Июль[[#This Row],[Дата]] -> 2018-07-11
A18: 2018-07-12 | C18: 221339 | D18: 221339 | E18: 0 | F18: 0 | G18: =IF(Июль[[#This Row],[Дата]]="","",M17) -> 851 | H18: 975 | I18: 975 | J18: 0 | L18: 0 | M18: =IF($T$2=[Дата],VLOOKUP([Дата],S$2:U$3,3),IF($T$3=[Дата],VLOOKUP([Дата],S$2:U$3,3),IF($S$2=[Дата],VLOOKUP([Дата],S$2:U$3,3),INDIRECT($P$1&"!F"&ROW())+INDIRECT($P$1&"!U"&ROW())+INDIRECT($P$1&"!G"&ROW())-INDIRECT($P$1&"!O"&ROW())))) -> 851 | N18: 0 | O18: 0 | P18: 0 | R18: =Июль[[#This Row],[Дата]] -> 2018-07-12 | Z18: =Июль[[#This Row],[Дата]] -> 2018-07-12
A19: 2018-07-13 | C19: 221339 | D19: 221339 | E19: 0 | F19: 0 | G19: =IF(Июль[[#This Row],[Дата]]="","",M18) -> 851 | H19: 975 | I19: 975 | J19: 0 | L19: 0 | M19: =IF($T$2=[Дата],VLOOKUP([Дата],S$2:U$3,3),IF($T$3=[Дата],VLOOKUP([Дата],S$2:U$3,3),IF($S$2=[Дата],VLOOKUP([Дата],S$2:U$3,3),INDIRECT($P$1&"!F"&ROW())+INDIRECT($P$1&"!U"&ROW())+INDIRECT($P$1&"!G"&ROW())-INDIRECT($P$1&"!O"&ROW())))) -> 851 | N19: 0 | O19: 0 | P19: 0 | R19: =Июль[[#This Row],[Дата]] -> 2018-07-13 | Z19: =Июль[[#This Row],[Дата]] -> 2018-07-13
A20: 2018-07-14 | C20: 221339 | D20: 221339 | E20: 0 | F20: 0 | G20: =IF(Июль[[#This Row],[Дата]]="","",M19) -> 851 | H20: 975 | I20: 975 | J20: 0 | L20: 0 | M20: =IF($T$2=[Дата],VLOOKUP([Дата],S$2:U$3,3),IF($T$3=[Дата],VLOOKUP([Дата],S$2:U$3,3),IF($S$2=[Дата],VLOOKUP([Дата],S$2:U$3,3),INDIRECT($P$1&"!F"&ROW())+INDIRECT($P$1&"!U"&ROW())+INDIRECT($P$1&"!G"&ROW())-INDIRECT($P$1&"!O"&ROW())))) -> 851 | N20: 0 | O20: 0 | P20: 0 | R20: =Июль[[#This Row],[Дата]] -> 2018-07-14 | Z20: =Июль[[#This Row],[Дата]] -> 2018-07-14
A21: 2018-07-15 | C21: 221339 | D21: 221339 | E21: 0 | F21: 0 | G21: =IF(Июль[[#This Row],[Дата]]="","",M20) -> 851 | H21: 975 | I21: 975 | J21: 0 | L21: 0 | M21: =IF($T$2=[Дата],VLOOKUP([Дата],S$2:U$3,3),IF($T$3=[Дата],VLOOKUP([Дата],S$2:U$3,3),IF($S$2=[Дата],VLOOKUP([Дата],S$2:U$3,3),INDIRECT($P$1&"!F"&ROW())+INDIRECT($P$1&"!U"&ROW())+INDIRECT($P$1&"!G"&ROW())-INDIRECT($P$1&"!O"&ROW())))) -> 851 | N21: 0 | O21: 0 | P21: 0 | R21: =Июль[[#This Row],[Дата]] -> 2018-07-15 | Z21: =Июль[[#This Row],[Дата]] -> 2018-07-15
A22: 2018-07-16 | B22: Малышев О.С. | C22: 221339 | D22: 221460 | E22: 121 | F22: 0 | G22: =IF(Июль[[#This Row],[Дата]]="","",M21) -> 851 | H22: 975 | I22: 978 | J22: 3 | K22: 2 | L22: 16.5 | M22: =IF($T$2=[Дата],VLOOKUP([Дата],S$2:U$3,3),IF($T$3=[Дата],VLOOKUP([Дата],S$2:U$3,3),IF($S$2=[Дата],VLOOKUP([Дата],S$2:U$3,3),INDIRECT($P$1&"!F"&ROW())+INDIRECT($P$1&"!U"&ROW())+INDIRECT($P$1&"!G"&ROW())-INDIRECT($P$1&"!O"&ROW())))) -> 500 | N22: 73.201 | O22: 38 | P22: -35.201 | R22: =Июль[[#This Row],[Дата]] -> 2018-07-16 | Z22: =Июль[[#This Row],[Дата]] -> 2018-07-16
A23: 2018-07-17 | C23: 221460 | E23: 0 | F23: 0 | G23: =IF(Июль[[#This Row],[Дата]]="","",M22) -> 500 | H23: 978 | J23: 0 | L23: 0 | M23: =IF($T$2=[Дата],VLOOKUP([Дата],S$2:U$3,3),IF($T$3=[Дата],VLOOKUP([Дата],S$2:U$3,3),IF($S$2=[Дата],VLOOKUP([Дата],S$2:U$3,3),INDIRECT($P$1&"!F"&ROW())+INDIRECT($P$1&"!U"&ROW())+INDIRECT($P$1&"!G"&ROW())-INDIRECT($P$1&"!O"&ROW())))) -> 500 | N23: 0 | O23: 0 | P23: 0 | R23: =Июль[[#This Row],[Дата]] -> 2018-07-17 | Z23: =Июль[[#This Row],[Дата]] -> 2018-07-17
A24: 2018-07-18 | C24: 0 | E24: 0 | F24: 0 | G24: =IF(Июль[[#This Row],[Дата]]="","",M23) -> 500 | H24: 0 | J24: 0 | L24: 0 | M24: =IF($T$2=[Дата],VLOOKUP([Дата],S$2:U$3,3),IF($T$3=[Дата],VLOOKUP([Дата],S$2:U$3,3),IF($S$2=[Дата],VLOOKUP([Дата],S$2:U$3,3),INDIRECT($P$1&"!F"&ROW())+INDIRECT($P$1&"!U"&ROW())+INDIRECT($P$1&"!G"&ROW())-INDIRECT($P$1&"!O"&ROW())))) -> 500 | N24: 0 | O24: 0 | P24: 0 | R24: =Июль[[#This Row],[Дата]] -> 2018-07-18 | Z24: =Июль[[#This Row],[Дата]] -> 2018-07-18
A25: 2018-07-19 | C25: 0 | E25: 0 | F25: 0 | G25: =IF(Июль[[#This Row],[Дата]]="","",M24) -> 500 | H25: 0 | J25: 0 | L25: 0 | M25: =IF($T$2=[Дата],VLOOKUP([Дата],S$2:U$3,3),IF($T$3=[Дата],VLOOKUP([Дата],S$2:U$3,3),IF($S$2=[Дата],VLOOKUP([Дата],S$2:U$3,3),INDIRECT($P$1&"!F"&ROW())+INDIRECT($P$1&"!U"&ROW())+INDIRECT($P$1&"!G"&ROW())-INDIRECT($P$1&"!O"&ROW())))) -> 500 | N25: 0 | O25: 0 | P25: 0 | R25: =Июль[[#This Row],[Дата]] -> 2018-07-19 | Z25: =Июль[[#This Row],[Дата]] -> 2018-07-19
A26: 2018-07-20 | C26: 0 | E26: 0 | F26: 0 | G26: =IF(Июль[[#This Row],[Дата]]="","",M25) -> 500 | H26: 0 | J26: 0 | L26: 0 | M26: =IF($T$2=[Дата],VLOOKUP([Дата],S$2:U$3,3),IF($T$3=[Дата],VLOOKUP([Дата],S$2:U$3,3),IF($S$2=[Дата],VLOOKUP([Дата],S$2:U$3,3),INDIRECT($P$1&"!F"&ROW())+INDIRECT($P$1&"!U"&ROW())+INDIRECT($P$1&"!G"&ROW())-INDIRECT($P$1&"!O"&ROW())))) -> 500 | N26: 0 | O26: 0 | P26: 0 | R26: =Июль[[#This Row],[Дата]] -> 2018-07-20 | Z26: =Июль[[#This Row],[Дата]] -> 2018-07-20
A27: 2018-07-21 | C27: 0 | E27: 0 | F27: 0 | G27: =IF(Июль[[#This Row],[Дата]]="","",M26) -> 500 | H27: 0 | J27: 0 | L27: 0 | M27: =IF($T$2=[Дата],VLOOKUP([Дата],S$2:U$3,3),IF($T$3=[Дата],VLOOKUP([Дата],S$2:U$3,3),IF($S$2=[Дата],VLOOKUP([Дата],S$2:U$3,3),INDIRECT($P$1&"!F"&ROW())+INDIRECT($P$1&"!U"&ROW())+INDIRECT($P$1&"!G"&ROW())-INDIRECT($P$1&"!O"&ROW())))) -> 500 | N27: 0 | O27: 0 | P27: 0 | R27: =Июль[[#This Row],[Дата]] -> 2018-07-21 | Z27: =Июль[[#This Row],[Дата]] -> 2018-07-21
A28: 2018-07-22 | C28: 0 | E28: 0 | F28: 0 | G28: =IF(Июль[[#This Row],[Дата]]="","",M27) -> 500 | H28: 0 | J28: 0 | L28: 0 | M28: =IF($T$2=[Дата],VLOOKUP([Дата],S$2:U$3,3),IF($T$3=[Дата],VLOOKUP([Дата],S$2:U$3,3),IF($S$2=[Дата],VLOOKUP([Дата],S$2:U$3,3),INDIRECT($P$1&"!F"&ROW())+INDIRECT($P$1&"!U"&ROW())+INDIRECT($P$1&"!G"&ROW())-INDIRECT($P$1&"!O"&ROW())))) -> 500 | N28: 0 | O28: 0 | P28: 0 | R28: =Июль[[#This Row],[Дата]] -> 2018-07-22 | Z28: =Июль[[#This Row],[Дата]] -> 2018-07-22
A29: 2018-07-23 | C29: 0 | E29: 0 | F29: 0 | G29: =IF(Июль[[#This Row],[Дата]]="","",M28) -> 500 | H29: 0 | J29: 0 | L29: 0 | M29: =IF($T$2=[Дата],VLOOKUP([Дата],S$2:U$3,3),IF($T$3=[Дата],VLOOKUP([Дата],S$2:U$3,3),IF($S$2=[Дата],VLOOKUP([Дата],S$2:U$3,3),INDIRECT($P$1&"!F"&ROW())+INDIRECT($P$1&"!U"&ROW())+INDIRECT($P$1&"!G"&ROW())-INDIRECT($P$1&"!O"&ROW())))) -> 500 | N29: 0 | O29: 0 | P29: 0 | R29: =Июль[[#This Row],[Дата]] -> 2018-07-23 | Z29: =Июль[[#This Row],[Дата]] -> 2018-07-23
A30: 2018-07-24 | C30: 0 | E30: 0 | F30: 0 | G30: =IF(Июль[[#This Row],[Дата]]="","",M29) -> 500 | H30: 0 | J30: 0 | L30: 0 | M30: =IF($T$2=[Дата],VLOOKUP([Дата],S$2:U$3,3),IF($T$3=[Дата],VLOOKUP([Дата],S$2:U$3,3),IF($S$2=[Дата],VLOOKUP([Дата],S$2:U$3,3),INDIRECT($P$1&"!F"&ROW())+INDIRECT($P$1&"!U"&ROW())+INDIRECT($P$1&"!G"&ROW())-INDIRECT($P$1&"!O"&ROW())))) -> 500 | N30: 0 | O30: 0 | P30: 0 | R30: =Июль[[#This Row],[Дата]] -> 2018-07-24 | Z30: =Июль[[#This Row],[Дата]] -> 2018-07-24
A31: 2018-07-25 | C31: 0 | E31: 0 | F31: 0 | G31: =IF(Июль[[#This Row],[Дата]]="","",M30) -> 500 | H31: 0 | J31: 0 | L31: 0 | M31: =IF($T$2=[Дата],VLOOKUP([Дата],S$2:U$3,3),IF($T$3=[Дата],VLOOKUP([Дата],S$2:U$3,3),IF($S$2=[Дата],VLOOKUP([Дата],S$2:U$3,3),INDIRECT($P$1&"!F"&ROW())+INDIRECT($P$1&"!U"&ROW())+INDIRECT($P$1&"!G"&ROW())-INDIRECT($P$1&"!O"&ROW())))) -> 500 | N31: 0 | O31: 0 | P31: 0 | R31: =Июль[[#This Row],[Дата]] -> 2018-07-25 | Z31: =Июль[[#This Row],[Дата]] -> 2018-07-25
A32: 2018-07-26 | C32: 0 | E32: 0 | F32: 0 | G32: =IF(Июль[[#This Row],[Дата]]="","",M31) -> 500 | H32: 0 | J32: 0 | L32: 0 | M32: =IF($T$2=[Дата],VLOOKUP([Дата],S$2:U$3,3),IF($T$3=[Дата],VLOOKUP([Дата],S$2:U$3,3),IF($S$2=[Дата],VLOOKUP([Дата],S$2:U$3,3),INDIRECT($P$1&"!F"&ROW())+INDIRECT($P$1&"!U"&ROW())+INDIRECT($P$1&"!G"&ROW())-INDIRECT($P$1&"!O"&ROW())))) -> 500 | N32: 0 | O32: 0 | P32: 0 | R32: =Июль[[#This Row],[Дата]] -> 2018-07-26 | Z32: =Июль[[#This Row],[Дата]] -> 2018-07-26
A33: 2018-07-27 | C33: 0 | E33: 0 | F33: 0 | G33: =IF(Июль[[#This Row],[Дата]]="","",M32) -> 500 | H33: 0 | J33: 0 | L33: 0 | M33: =IF($T$2=[Дата],VLOOKUP([Дата],S$2:U$3,3),IF($T$3=[Дата],VLOOKUP([Дата],S$2:U$3,3),IF($S$2=[Дата],VLOOKUP([Дата],S$2:U$3,3),INDIRECT($P$1&"!F"&ROW())+INDIRECT($P$1&"!U"&ROW())+INDIRECT($P$1&"!G"&ROW())-INDIRECT($P$1&"!O"&ROW())))) -> 500 | N33: 0 | O33: 0 | P33: 0 | R33: =Июль[[#This Row],[Дата]] -> 2018-07-27 | Z33: =Июль[[#This Row],[Дата]] -> 2018-07-27
A34: 2018-07-28 | C34: 0 | E34: 0 | F34: 0 | G34: =IF(Июль[[#This Row],[Дата]]="","",M33) -> 500 | H34: 0 | J34: 0 | L34: 0 | M34: =IF($T$2=[Дата],VLOOKUP([Дата],S$2:U$3,3),IF($T$3=[Дата],VLOOKUP([Дата],S$2:U$3,3),IF($S$2=[Дата],VLOOKUP([Дата],S$2:U$3,3),INDIRECT($P$1&"!F"&ROW())+INDIRECT($P$1&"!U"&ROW())+INDIRECT($P$1&"!G"&ROW())-INDIRECT($P$1&"!O"&ROW())))) -> 500 | N34: 0 | O34: 0 | P34: 0 | R34: =Июль[[#This Row],[Дата]] -> 2018-07-28 | Z34: =Июль[[#This Row],[Дата]] -> 2018-07-28
A35: 2018-07-29 | C35: 0 | E35: 0 | F35: 0 | G35: =IF(Июль[[#This Row],[Дата]]="","",M34) -> 500 | H35: 0 | J35: 0 | L35: 0 | M35: =IF($T$2=[Дата],VLOOKUP([Дата],S$2:U$3,3),IF($T$3=[Дата],VLOOKUP([Дата],S$2:U$3,3),IF($S$2=[Дата],VLOOKUP([Дата],S$2:U$3,3),INDIRECT($P$1&"!F"&ROW())+INDIRECT($P$1&"!U"&ROW())+INDIRECT($P$1&"!G"&ROW())-INDIRECT($P$1&"!O"&ROW())))) -> 500 | N35: 0 | O35: 0 | P35: 0 | R35: =Июль[[#This Row],[Дата]] -> 2018-07-29 | Z35: =Июль[[#This Row],[Дата]] -> 2018-07-29
A36: 2018-07-30 | C36: 0 | E36: 0 | F36: 0 | G36: =IF(Июль[[#This Row],[Дата]]="","",M35) -> 500 | H36: 0 | J36: 0 | L36: 0 | M36: =IF($T$2=[Дата],VLOOKUP([Дата],S$2:U$3,3),IF($T$3=[Дата],VLOOKUP([Дата],S$2:U$3,3),IF($S$2=[Дата],VLOOKUP([Дата],S$2:U$3,3),INDIRECT($P$1&"!F"&ROW())+INDIRECT($P$1&"!U"&ROW())+INDIRECT($P$1&"!G"&ROW())-INDIRECT($P$1&"!O"&ROW())))) -> 500 | N36: 0 | O36: 0 | P36: 0 | R36: =Июль[[#This Row],[Дата]] -> 2018-07-30 | Z36: =Июль[[#This Row],[Дата]] -> 2018-07-30
A37: 2018-07-31 | C37: 0 | E37: 0 | F37: 0 | G37: =IF(Июль[[#This Row],[Дата]]="","",M36) -> 500 | H37: 0 | J37: 0 | L37: 0 | M37: =IF($T$2=[Дата],VLOOKUP([Дата],S$2:U$3,3),IF($T$3=[Дата],VLOOKUP([Дата],S$2:U$3,3),IF($S$2=[Дата],VLOOKUP([Дата],S$2:U$3,3),INDIRECT($P$1&"!F"&ROW())+INDIRECT($P$1&"!U"&ROW())+INDIRECT($P$1&"!G"&ROW())-INDIRECT($P$1&"!O"&ROW())))) -> 500 | N37: 0 | O37: 0 | P37: 0 | R37: =Июль[[#This Row],[Дата]] -> 2018-07-31 | Z37: =Июль[[#This Row],[Дата]] -> 2018-07-31
A38: Итог | E38: =SUBTOTAL(109,[Пройдено за день, км]) -> 1436 | F38: =SUBTOTAL(109,[Выдано топливо, литр]) -> 960 | J38: =SUBTOTAL(109,[Работа спецоборудования за день, м/ч]) -> 33 | K38: =SUBTOTAL(109,[Количество ходок]) -> 27 | L38: =SUBTOTAL(109,[Расход топлива на работу спецоборудования, литр]) -> 181.5 | N38: =SUBTOTAL(109,[Расход топлива по норме, литр]) -> 854.409 | O38: =SUBTOTAL(109,[Фактический расход топлива, литр]) -> 430 | P38: =SUBTOTAL(109,[Отклонение от нормы (Перерасход(+), экономия(-)), литр]) -> -424.409 | R38: 1-я пол. | S38: =SUMIFS(S$7:S$37,INDIRECT("Июль[Дата]"),">="&$S$2,INDIRECT("Июль[Дата]"),"<="&$T$2)+IF(MONTH($T$2)<>MONTH($S$2),INDIRECT(TEXT($A$7-1,"ММММ")&"!F38")-SUM(INDIRECT(TEXT($A$7-1,"ММММ")&"!V1:V2"))) -> 0 | T38: =SUMIFS(T$7:T$37,INDIRECT("Июль[Дата]"),">="&$S$2,INDIRECT("Июль[Дата]"),"<="&$T$2)+IF(MONTH($T$2)<>MONTH($S$2),INDIRECT(TEXT($A$7-1,"ММММ")&"!F38")-SUM(INDIRECT(TEXT($A$7-1,"ММММ")&"!V1:V2"))) -> 0 | U38: 0 | V38: 0 | W38: 0 | X38: 0 | Y38: 0 | Z38: 1-я пол.
K39: =SUMIFS(K7:K37,A7:A37,">="&$S$2,A7:A37,"<="&$T$2) -> 25 | R39: 2-я пол. | S39: =SUMIFS(S$7:S$37,INDIRECT("Июль[Дата]"),">="&$S$3,INDIRECT("Июль[Дата]"),"<="&$T$3)+IF(MONTH($T$3)<>MONTH($S$3),INDIRECT(TEXT($A$7-1,"ММММ")&"!F38")-SUM(INDIRECT(TEXT($A$7-1,"ММММ")&"!V1:V2"))) -> 0 | T39: =SUMIFS(T$7:T$37,INDIRECT("Июль[Дата]"),">="&$S$3,INDIRECT("Июль[Дата]"),"<="&$T$3)+IF(MONTH($T$3)<>MONTH($S$3),INDIRECT(TEXT($A$7-1,"ММММ")&"!F38")-SUM(INDIRECT(TEXT($A$7-1,"ММММ")&"!V1:V2"))) -> 0 | U39: 0 | V39: 0 | W39: 0 | X39: 0 | Y39: 0 | Z39: 2-я пол.
K40: =SUMIFS(K7:K37,A7:A37,">="&$S$3,A7:A37,"<="&$T$3) -> 0

Sheet ТС
G1: Зима : | H1: 01.11 - 31.03 | L1: Зима : | M1: 01.11 - 31.03 | P1: Расчет максимальной нормы расхода ДТ (литр/100км)
G2: Лето: | H2: 01.04 - 30.10 | L2: Лето: | M2: 01.04 - 30.10
G3: доп.коэфф-т к норме | L3: доп.коэфф-т к норме
A4: № п/п | B4: Номер гос.регистрации / Заводской номер | C4: Километраж, км | D4: Спецоборудование, м/ч | E4: Топливо, л | F4: Базовая норма расхода на 100 км | G4: Зима | H4: Лето | I4: Итога норма а/м ЗИМА | J4: Итога норма а/м ЛЕТО | K4: Базовая норма расхода на 1 мото/час | L4: "Зима" | M4: "Лето" | N4: Итога норма а/м "ЗИМА" | O4: Итога норма а/м "ЛЕТО" | P4: Норма на 100 км, литров | Q4: движение с манипулятором | R4: Тоннаж | S4: Литры | T4: На движение с грузом | U4: Тоннаж1 | V4: К-т загрузки | W4: ИТОГ | X4: 25% за работу в городе с населением свыше 3 млн. человек | Y4: 10 % за работу зимой
A5: 1 | B5: Норма 1 | C5: 209024 | D5: 620 | E5: 500 | F5: 46.86 | G5: 10 | H5: 0 | I5: =F5*(100+G5)% -> 51.546 | J5: =F5*(100+H5)% -> 46.86 | K5: 5.5 | L5: 10 | M5: 0 | N5: =K5*(100+L5)% -> 6.05 | O5: =K5*(100+M5)% -> 5.5 | P5: 32.2 | Q5: =R5*S5 -> 2.938 | R5: 2.26 | S5: 1.3 | T5: =U5*V5*S5 -> 5.2 | U5: 8 | V5: 0.5 | W5: =P5+Q5+T5 -> 40.338 | X5: =W5*25%+W5 -> 50.4225 | Y5: =W5*10%+X5 -> 54.4563
A6: 2 | B6: Норма 2 | E6: 500 | F6: =F5-F5*5% -> 44.517 | G6: 10 | H6: 0 | I6: =F6*(100+G6)% -> 48.9687 | J6: =F6*(100+H6)% -> 44.517 | K6: =K5-K5*5% -> 5.225 | L6: 10 | M6: 0 | N6: =K6*(100+L6)% -> 5.7475 | O6: =K6*(100+M6)% -> 5.225 | P6: 32.2 | Q6: =R6*S6 -> 2.938 | R6: 2.26 | S6: 1.3 | T6: =U6*V6*S6 -> 5.2 | U6: 8 | V6: 0.5 | W6: =P6+Q6+T6 -> 40.338 | X6: =W6*25%+W6 -> 50.4225 | Y6: =W6*10%+X6 -> 54.4563
A7: 3 | B7: Норма 3 | E7: 500 | F7: =F5-F5*10% -> 42.174 | G7: 10 | H7: 0 | I7: =F7*(100+G7)% -> 46.3914 | J7: 42.174 | K7: =K5-K5*10% -> 4.95 | L7: 10 | M7: 0 | N7: =K7*(100+L7)% -> 5.445 | O7: =K7*(100+M7)% -> 4.95 | P7: 32.2 | Q7: =R7*S7 -> 2.938 | R7: 2.26 | S7: 1.3 | T7: =U7*V7*S7 -> 5.2 | U7: 8 | V7: 0.5 | W7: =P7+Q7+T7 -> 40.338 | X7: =W7*25%+W7 -> 50.4225 | Y7: =W7*10%+X7 -> 54.4563
A8: 4 | B8: Переход 1 | E8: 500 | F8: 46.86 | G8: 10 | H8: 0 | I8: =F8*(100+G8)% -> 51.546 | J8: =F8*(100+H8)% -> 46.86 | K8: 5.5 | L8: 10 | M8: 0 | N8: =K8*(100+L8)% -> 6.05 | O8: =K8*(100+M8)% -> 5.5 | Q8: =R8*S8 -> 0 | T8: =U8*V8*S8 -> 0 | W8: =P8+Q8+T8 -> 0 | X8: =W8*25%+W8 -> 0 | Y8: =W8*10%+X8 -> 0
A9: 5 | B9: Переход 2 | E9: 500 | F9: =F8-F8*5% -> 44.517 | G9: 10 | H9: 0 | I9: =F9*(100+G9)% -> 48.9687 | J9: =F9*(100+H9)% -> 44.517 | K9: =K8-K8*5% -> 5.225 | L9: 10 | M9: 0 | N9: =K9*(100+L9)% -> 5.7475 | O9: =K9*(100+M9)% -> 5.225 | Q9: =R9*S9 -> 0 | T9: =U9*V9*S9 -> 0 | W9: =P9+Q9+T9 -> 0 | X9: =W9*25%+W9 -> 0 | Y9: =W9*10%+X9 -> 0
A10: 6 | B10: Переход 3 | E10: 500 | F10: =F8-F8*10% -> 42.174 | G10: 10 | H10: 0 | I10: =F10*(100+G10)% -> 46.3914 | J10: 42.174 | K10: =K8-K8*10% -> 4.95 | L10: 10 | M10: 0 | N10: =K10*(100+L10)% -> 5.445 | O10: =K10*(100+M10)% -> 4.95 | Q10: =R10*S10 -> 0 | T10: =U10*V10*S10 -> 0 | W10: =P10+Q10+T10 -> 0 | X10: =W10*25%+W10 -> 0 | Y10: =W10*10%+X10 -> 0
B12: Зима
B13: Лето
B15: Январь
B16: Февраль
B17: Март
B18: Апрель
B19: Май
B20: Июнь
B21: Июль
B22: Август
B23: Сентябрь
B24: Октябрь
B25: Ноябрь
B26: Декабрь
B28: Норма 1
B29: Норма 2
B30: Норма 3
B31: Переход 1
B32: Переход 2
B33: Переход 3

Sheet Сотрудники
B1: Ф.И.О.
B2: Зяблов А.А
B3: Ильин А.Г.
B4: Ильин Е.Н.
B5: Ильичев Ю.Ф.
B6: Кобалян М.В.
B7: Лагутенко А.А.
B8: Малышев О.С.
B9: Никляев В.А.
B10: Сергеев Д.О.
B11: Ястребов Е.В.
